Workbook

Sheet TOC
A1: Design, copyright and all Rights Reserved by: Arun. Aurian Systems 2010
A2: Supplier Information | G2: Job Costing. -- Supplier Invoices
B3: Table of Contents | G3: Tracking for the job: | H3: =MID(CELL("filename",A1),FIND("g",CELL("filename",A1))+2,FIND("x", CELL("filename",A1))-FIND("g",CELL("filename",A1))-3) -> S12331
B4: 2 | C4: !TEMPLATE
B5: 3 | C5: 00 Lien Services
B6: 4 | C6: 01 Design | G6: =+'zz Total'!B34 -> 3157.25 | H6: Total to suppliers
B7: 5 | C7: 01 Inspections
B8: 6 | C8: 03 Permit
B9: 7 | C9: 04 DWG-CES&R
B10: 8 | C10: Parts Alarm
B11: 9 | C11: Rental AWP
B12: 10 | C12: zz Total
I22: Version: 1.16
I23: Last Mods: 2022-Feb-06 08:45
I24: Revision: 2022-02-06 10:30
I25: Originally Created: 2013-Nov-05 18:00

Sheet !TEMPLATE
A1: =MID(CELL("filename",A1),FIND("]",CELL("filename",A1))+1,256) -> !TEMPLATE | D1: Back to Contents | F1: =MID(CELL("filename",A1),FIND("g",CELL("filename",A1))+2,FIND("x", CELL("filename",A1))-FIND("g",CELL("filename",A1))-3) -> S12331 | H1: =IF(+H33<>0,H33,0) -> 0
A2: Notes here
A3: ORDER | B3: SHIP | C3: B/O | D3: PART # | F3: DESCRIPTION | G3: COST | H3: PRICE | I3: PKG | J3: INV. # | K3: DATE | M3: Notes
A5: Insert Rows BELOW this line
H6: =IF(B6=0,"",+G6*B6) -> 
F7: Template | H7: =IF(B7=0,"",+G7*B7) -> 
F8: To create a sheet for another supplier,
F9: click the [New Sheet] button above
D10: In the NEW sheet …
D11: Double click the TAB below that says |newSheet| and Rename it with the suppliers name.
F12: Now Close & Save the file
F13: When you first open this file, an [Options] button MAY display above.
F14: Click [Options]
F15: Put a Check in 'Enable This Content' Click [Ok]
F16: Then Permit the 'Rebuilding of the Table of Contents'.
D18: Sheets will then be sorted in Alphabetic order, and then you will be placed in the TOC page.
D20: In the Newly renamed sheet …
D21: the TOP LEFT cell A1 WILL BE AUTOMATICALLY LABELLED with what it is for
D22: then
D23: Hi-lite these cells, and press Delete key, to remove these instructions.
A31: Insert Rows ABOVE this line & check col H formula
A33: =TabName() -> TOC | G33: Total | H33: =SUM(H4:H32) -> 0
C35: As you enter a 'Ship' quantity, the 'COST' column will 'color' for you to enter an amount
C36: Enter a dollar value in the 'COST' column & the Invoice column will 'color' for you to enter an amount.
C38: When you re-open the file, the re-build will transfer values to the Totals Sheet

Sheet 00 Lien Services
A1: =MID(CELL("filename",A1),FIND("]",CELL("filename",A1))+1,256) -> 00 Lien Services | D1: Back to Contents | F1: =MID(CELL("filename",A1),FIND("g",CELL("filename",A1))+2,FIND("x", CELL("filename",A1))-FIND("g",CELL("filename",A1))-3) -> S12331 | H1: =IF(+H23<>0,H23,0) -> 50
A2: Notes here
A3: ORDER | B3: SHIP | C3: B/O | D3: PART # | F3: DESCRIPTION | G3: COST | H3: PRICE | I3: PKG | J3: INV. # | K3: DATE | M3: Notes
A5: Insert Rows BELOW this line
B6: 1 | D6: SCR00 | F6: Prelim applied within 20 days of start. | G6: 25 | H6: =IF(B6=0,"",+G6*B6) -> 25
B7: 1 | D7: SCR00 | F7: Prelim removed within 30 days of job end. | G7: 25 | H7: =IF(B7=0,"",+G7*B7) -> 25 | M7: NOT YET Applied Prelim notice
D8: WLS | F8: Lien Applied (Predictive) | G8: 160 | M8: Applied
D9: WLS | F9: Lien Removed (Predictive) | G9: 75
A21: Insert Rows ABOVE this line & check col H formula
A23: =TabName() -> TOC | G23: Total | H23: =SUM(H4:H22) -> 50
C25: As you enter a 'Ship' quantity, the 'COST' column will 'color' for you to enter an amount
C26: a dollar value in the 'COST column & the Invoice column will 'color' for you to enter an amount.
C28: When you re-open the file, the re-build will transfer values to the Totals Sheet

Sheet 01 Design
A1: =MID(CELL("filename",A1),FIND("]",CELL("filename",A1))+1,256) -> 01 Design | D1: Back to Contents | F1: =MID(CELL("filename",A1),FIND("g",CELL("filename",A1))+2,FIND("x", CELL("filename",A1))-FIND("g",CELL("filename",A1))-3) -> S12331 | H1: =IF(+H28<>0,H28,0) -> 1500
A2: DESIGNERS: KLJ-SFPS-UniCAD PE-NICET etc
A3: ORDER | B3: SHIP | C3: B/O | D3: PART # | F3: DESCRIPTION | G3: COST | H3: PRICE | I3: PKG | J3: INV. # | K3: DATE | M3: Notes
A5: Insert Rows BELOW this line
B6: 1 | D6: UniCAD | F6: Site Survey Brady Haws | G6: 600 | H6: =IF(B6=0,"",+G6*B6) -> 600 | K6: 2021-mm-dd
B7: 1 | F7: FACP D&S 4 sheets | G7: 200 | H7: =IF(B7=0,"",+G7*B7) -> 200 | K7: 2021-mm-dd
B8: 1 | F8: As Built / Record drawings and Placards | G8: 400 | H8: 400 | K8: 2021-mm-dd
F9: Andy Haws
B11: 3 | F11: FSS Chem System electrical connection | G11: 100 | H11: 300
A26: Insert Rows ABOVE this line & check col H formula
A28: =TabName() -> TOC | G28: Total | H28: =SUM(H4:H27) -> 1500
C30: As you enter a 'Ship' quantity, the 'COST' column will 'color' for you to enter an amount
C31: a dollar value in the 'COST column & the Invoice column will 'color' for you to enter an amount.
C33: When you re-open the file, the re-build will transfer values to the Totals Sheet

Sheet 01 Inspections
A1: =MID(CELL("filename",A1),FIND("]",CELL("filename",A1))+1,256) -> 01 Inspections | D1: Back to Contents | F1: =MID(CELL("filename",A1),FIND("g",CELL("filename",A1))+2,FIND("x", CELL("filename",A1))-FIND("g",CELL("filename",A1))-3) -> S12331 | H1: =IF(+H28<>0,H28,0) -> 0
A2: Notes here
A3: ORDER | B3: SHIP | C3: B/O | D3: PART # | F3: DESCRIPTION | G3: COST | H3: PRICE | I3: PKG | J3: INV. # | K3: DATE | M3: Notes
A5: Insert Rows BELOW this line
H6: =IF(B6=0,"",+G6*B6) -> 
E7: 1 | H7: =IF(B7=0,"",+G7*B7) -> 
A26: Insert Rows ABOVE this line & check col H formula
A28: =TabName() -> TOC | G28: Total | H28: =SUM(H4:H27) -> 0
C31: As you enter a 'Ship' quantity, the 'COST' column will 'color' for you to enter an amount
C32: Enter a dollar value in the 'COST' column & the Invoice column will 'color' for you to enter an amount.
C34: When you re-open the file, the re-build will transfer values to the Totals Sheet

Sheet 03 Permit
A1: =MID(CELL("filename",A1),FIND("]",CELL("filename",A1))+1,256) -> 03 Permit | D1: Back to Contents | F1: =MID(CELL("filename",A1),FIND("g",CELL("filename",A1))+2,FIND("x", CELL("filename",A1))-FIND("g",CELL("filename",A1))-3) -> S12331 | H1: =IF(+H27<>0,H27,0) -> 525
A2: Include: AHJ Permit fees, Compliance reporting fees here.
A3: ORDER | B3: SHIP | C3: B/O | D3: PART # | F3: DESCRIPTION | G3: COST | H3: PRICE | I3: PKG | J3: INV. # | K3: DATE | M3: Notes
A5: Insert Rows BELOW this line
B6: 1 | F6: The Compliance Reporting Fee | G6: 25 | H6: =IF(B6=0,"",+G6*B6) -> 25
B7: 1 | F7: UT South Salt Lake FM Permit and Review | G7: 500 | H7: =IF(B7=0,"",+G7*B7) -> 500
A25: Insert Rows ABOVE this line & check col H formula
A27: =TabName() -> TOC | G27: Total | H27: =SUM(H4:H26) -> 525
C30: As you enter a 'Ship' quantity, the 'COST' column will 'color' for you to enter an amount
C31: Enter a dollar value in the 'COST' column & the Invoice column will 'color' for you to enter an amount.
C33: When you re-open the file, the re-build will transfer values to the Totals Sheet

Sheet 04 DWG-CES&R
A1: =MID(CELL("filename",A1),FIND("]",CELL("filename",A1))+1,256) -> 04 DWG-CES&R | D1: Back to Contents | F1: =MID(CELL("filename",A1),FIND("g",CELL("filename",A1))+2,FIND("x", CELL("filename",A1))-FIND("g",CELL("filename",A1))-3) -> S12331 | H1: =IF(+H28<>0,H28,0) -> 8.75
A2: Includes CES&R, Certified Reprographics, AlphaGraphics etc.
A3: ORDER | B3: SHIP | C3: B/O | D3: PART # | F3: DESCRIPTION | G3: COST | H3: PRICE | I3: PKG | J3: INV. # | K3: DATE | M3: Notes
A5: Insert Rows BELOW this line
H6: =IF(B6=0,"",+G6*B6) -> 
B7: 1 | F7: 36' x 24" Sheet/s | G7: 2.42 | H7: =IF(B7=0,"",+G7*B7) -> 2.42 | K7: 2022-mm-dd
B8: 1 | F8: Setup wide format rebinding charge | G8: 6.33 | H8: 6.33 | K8: 2022-mm-dd
F9: Tax | G9: 1.55 | K9: 2022-mm-dd
F11: Paid with ??
A26: Insert Rows ABOVE this line & check col H formula
A28: =TabName() -> TOC | G28: Total | H28: =SUM(H4:H27) -> 8.75
C30: As you enter a 'Ship' quantity, the 'COST' column will 'color' for you to enter an amount
C31: Enter a dollar value in the 'COST' column & the Invoice column will 'color' for you to enter an amount.
C33: When you re-open the file, the re-build will transfer values to the Totals Sheet

Sheet Parts Alarm
A1: =MID(CELL("filename",A1),FIND("]",CELL("filename",A1))+1,256) -> Parts Alarm | D1: Back to Contents | F1: =MID(CELL("filename",A1),FIND("g",CELL("filename",A1))+2,FIND("x", CELL("filename",A1))-FIND("g",CELL("filename",A1))-3) -> S12331 | H1: =IF(+H33<>0,H33,0) -> 1073.5
A2: Notes here
A3: ORDER | B3: SHIP | C3: B/O | D3: PART # | F3: DESCRIPTION | G3: COST | H3: PRICE | I3: PKG | J3: INV. # | K3: DATE | M3: Notes
A5: Insert Rows BELOW this line
B6: 2 | F6: PyroChem -NMCH III control heads | G6: 277 | H6: =IF(B6=0,"",+G6*B6) -> 554
B7: 2 | F7: PyroChem -Alarm initiating switches | G7: 15.75 | H7: =IF(B7=0,"",+G7*B7) -> 31.5
B8: 4 | F8: PyroChem -Single microswitches | G8: 15.75 | H8: 63
B10: 5 | F10: Labour | G10: 85 | H10: 425
F13: need to add the FACP etc
F14: FL32FACP-LTEVI Verizon
F15: Smoke
F16: Pull
F17: Horn/Strobe
F19: Electrician
A31: Insert Rows ABOVE this line & check col H formula
A33: =TabName() -> TOC | G33: Total | H33: =SUM(H4:H32) -> 1073.5
C35: As you enter a 'Ship' quantity, the 'COST' column will 'color' for you to enter an amount
C36: Enter a dollar value in the 'COST' column & the Invoice column will 'color' for you to enter an amount.
C38: When you re-open the file, the re-build will transfer values to the Totals Sheet

Sheet Rental AWP
A1: =MID(CELL("filename",A1),FIND("]",CELL("filename",A1))+1,256) -> Rental AWP | D1: Back to Contents | F1: =MID(CELL("filename",A1),FIND("g",CELL("filename",A1))+2,FIND("x", CELL("filename",A1))-FIND("g",CELL("filename",A1))-3) -> S12331 | H1: =IF(+H28<>0,H28,0) -> 0
A2: Notes here
A3: ORDER | B3: SHIP | C3: B/O | D3: PART # | F3: DESCRIPTION | G3: COST | H3: PRICE | I3: PKG | J3: INV. # | K3: DATE | M3: Notes
A5: Insert Rows BELOW this line
F6: FSS unit | G6: 125 | H6: =IF(B6=0,"",+G6*B6) -> 
F7: Pickov Andropov | G7: 150 | H7: =IF(B7=0,"",+G7*B7) -> 
A26: Insert Rows ABOVE this line & check col H formula
A28: =TabName() -> TOC | G28: Total | H28: =SUM(H4:H27) -> 0
C30: As you enter a 'Ship' quantity, the 'COST' column will 'color' for you to enter an amount
C31: Enter a dollar value in the 'COST' column & the Invoice column will 'color' for you to enter an amount.
C33: When you re-open the file, the re-build will transfer values to the Totals Sheet

Sheet zz Total
A1: =MID(CELL("filename",A1),FIND("]",CELL("filename",A1))+1,256) -> zz Total | B1: Back to Contents
D2: =MID(CELL("filename",A1),FIND("g",CELL("filename",A1))+2,FIND("x", CELL("filename",A1))-FIND("g",CELL("filename",A1))-3) -> S12331
A3: Total Parts & Materials | B3: =SUM(B4:B33) -> 3157.25
A5: =+TOC!C5 -> 00 Lien Services | B5: =IF(A5>0,+INDIRECT("'"&A5&"'!H1",TRUE),"") -> 50
A6: =+TOC!C6 -> 01 Design | B6: =IF(A6>0,+INDIRECT("'"&A6&"'!H1",TRUE),"") -> 1500
A7: =+TOC!C7 -> 01 Inspections | B7: 0
A8: =+TOC!C8 -> 03 Permit | B8: 525
A9: =+TOC!C9 -> 04 DWG-CES&R | B9: 8.75
A10: =+TOC!C10 -> Parts Alarm | B10: 1073.5
A11: =+TOC!C11 -> Rental AWP | B11: 0
A12: =+TOC!C12 -> zz Total | B12: 0
A13: =+TOC!C13 -> 0
A14: =+TOC!C14 -> 0
A15: =+TOC!C15 -> 0
A16: =+TOC!C16 -> 0
A17: =+TOC!C17 -> 0
A18: =+TOC!C18 -> 0
A19: =+TOC!C19 -> 0
A20: =+TOC!C20 -> 0
A34: TOTAL PARTS | B34: =SUM(B4:B33) -> 3157.25 | O34: =+B3 -> 3157.25
A35: =TabName() -> TOC | J35: Weekly | K35: Person | M35: Hourly
J36: hrs | K36: units | L36: month | M36: amnt
I37: Labour | J37: 40 | K37: 2 | L37: 1.2 | M37: 77
J38: 1 person | K38: Total man hrs
I39: Total Hrs | J39: =+J37*4*L37 -> 192 | K39: =+J39*K37 -> 384 | M39: =+K39*M37 -> 29568
I43: from payrol hrs record | K43: 320 | M43: =+K43*M37 -> 24640 | O43: =+M43 -> 24640
O45: =SUM(B4:B33) -> 3157.25
H48: CONTRACT BID PRICE | J48: CCO
O49: =(I49+J49)-O45 -> -3157.25 | P49: =IF(O49<0,"Loss","Profit") -> Loss
I50: after GContractor reductions yyyy-mmm
